Cogmind - Beta 10.2 --- EXPLORER MODE // 2021.08.06 @ 20:52:20 Player: ava-01 Result: Destroyed by G-47 Trooper with Particle Gun Performance ------------- Evolutions (2) 1000 Regions Visited (3) 600 Robots Destroyed (27) 135 Value Destroyed (637) 637 Prototype IDs (0) 0 Alien Tech Used (0) 0 Bonus (4) 4 TOTAL SCORE: 2376 Bonus ------- High Alert Combat Kills 4 Cogmind --------- Core Integrity 0/550 Matter 123/300 Energy 100/100 System Corruption 0% Temperature Cool (9) Movement Core (300) Ox5 Location -8/Materials Parts ------- > --- POWER (2) -------- (None) > --- PROPULSION (5) --- (None) > --- UTILITY (2) ------ Large Storage Unit > --- WEAPON (3) ------- (None) > --- INVENTORY (10) --- Aluminum Leg Welding Torch Peak State ------------ > --- POWER ------------ Light Ion Engine Light Ion Engine > --- PROPULSION ------- Aluminum Leg Aluminum Leg Aluminum Leg Aluminum Leg Titanium Leg > --- UTILITY ---------- Improved Heat Sink Large Storage Unit > --- WEAPON ----------- Assault Rifle Light Assault Rifle Mini Grenade Launcher > --- INVENTORY -------- Light Ion Engine Medium Laser Light Assault Rifle Mace [Rating: 17] Favorites ----------- Power Light Ion Engine Engine Light Ion Engine Power Core Light Nuclear Core Propulsion Aluminum Leg Leg Aluminum Leg Utility Large Storage Unit Device Improved Heat Sink Storage Large Storage Unit Protection Light Armor Plating Weapon Assault Rifle Energy Gun Medium Laser Ballistic Gun Assault Rifle Launcher Mini Grenade Launcher Impact Weapon Mace Build | -11 -10 -9 -8 ------- Run | Scr Mat Mat Mat Slots Evolved 5 | . 1 2 2 Power 1 | . . 1 . Propulsion 3 | . . 1 2 Utility . | . . . . Weapon 1 | . 1 . . Parts Attached 20 | 6 1 5 8 Power 4 | 1 . 2 1 Engine 3 | 1 . 1 1 Core 1 | . . 1 . Reactor . | . . . . Propulsion 5 | 2 . 1 2 Treads . | . . . . Leg 5 | 2 . 1 2 Wheel . | . . . . Hover . | . . . . Flight . | . . . . Utility 3 | 1 1 . 1 Device 1 | . . . 1 Storage 1 | . 1 . . Processor . | . . . . Hackware . | . . . . Protection 1 | 1 . . . Artifact . | . . . . Weapon 8 | 2 . 2 4 Energy Gun 3 | 1 . . 2 Energy Cannon . | . . . . Ballistic Gun 3 | 1 . 1 1 Ballistic Cannon . | . . . . Launcher 1 | . . 1 . Special Weapon . | . . . . Impact Weapon 1 | . . . 1 Slashing Weapon . | . . . . Piercing Weapon . | . . . . Special Melee Weapon . | . . . . Unidentified Prototypes . | . . . . Parts Lost 18 | . . 2 16 Power 4 | . . 1 3 Propulsion 5 | . . . 5 Utility 2 | . . 1 1 Weapon 7 | . . . 7 Highest Loss Streak 14 | . . 1 14 Average Slot Usage (%) 80 | . 76 93 71 Engine 11 | . 12 12 11 Core 2 | . . 5 . Leg 27 | . 25 30 27 Device 1 | . . . 4 Storage 6 | . 1 10 8 Protection 6 | . 12 7 . Energy Gun 4 | . 12 2 . Ballistic Gun 13 | . 12 18 9 Launcher 4 | . . 7 5 Naked Turns . | . . . . Heaviest Build 32 | 10 26 32 27 Greatest Support 57 | 20 20 30 57 Greatest Overweight (x) 7 | . 1 1 7 Average Overweight (x) . | . . . . Largest Inventory Capacity 10 | 4 10 10 10 Average Capacity 8 | 4 4 10 10 Most Carried 6 | 3 5 6 5 Average Carried 3 | 1 2 4 3 Final Capacity 10 | 4 10 10 10 Final Carried 5 | 1 5 5 2 Class Distribution -------------------- 61% | Hacker-Mutant 21% | Hacker-Tank 16% | Hacker-Gunner Dominant Class ---------------- Hacker-Mutant | -10/Materials Hacker-Tank | -9/Materials Hacker-Mutant | -8/Materials Resources | -11 -10 -9 -8 ----------- Run | Scr Mat Mat Mat Matter Collected 511 | 171 119 67 154 Remotely . | . . . . Salvage Created 735 | . 139 403 193 Parts 45 | . 10 28 7 Haulers Intercepted 1 | . . 1 . Recyclers Shooed . | . . . . Parts Field Recycled . | . . . . Retrieved Matter . | . . . . Parts Self-Destructed . | . . . . Prevented . | . . . . Kills | -11 -10 -9 -8 ------- Run | Scr Mat Mat Mat Combat Hostiles Destroyed 20 | . 4 13 3 Guns 12 | . 4 7 1 AOE 7 | . . 6 1 Classes Destroyed 8 | . 3 5 . Builder 2 | . . 2 . Hauler 1 | . . 1 . Recycler 2 | . . 1 1 Watcher 2 | . 1 1 . Swarmer 8 | . 2 6 . Grunt 7 | . 2 4 1 Duelist 1 | . . 1 . Sentry 4 | . . 2 2 Best Kill Streak 6 | . 2 6 2 Combat Bots Only 6 | . 2 6 1 Max Kills in Single Turn 3 | . 1 3 1 Gunslinging . | . . . . Exploded 2 | . . 2 1 Melee . | . . . . Uniques/NPCs Destroyed . | . . . . Combat | -11 -10 -9 -8 -------- Run | Scr Mat Mat Mat Damage Taken 1949 | . 225 249 1475 Core 596 | . 38 8 550 Absorbed by Shields . | . . . . Core Remaining (%) 94 | 100 84 98 . Volleys Fired 63 | . 20 25 18 Largest 3 | . 2 3 2 Hottest 70 | . 70 70 70 Shots Fired 133 | . 39 65 29 Gun 114 | . 39 50 25 Cannon . | . . . . Launcher 19 | . . 15 4 Special . | . . . . Kinetic 88 | . 20 45 23 Thermal 25 | . 19 5 1 Explosive 19 | . . 15 4 Electromagnetic 1 | . . . 1 Robot Hit Streak 13 | . 12 13 11 Robot Miss Streak 2 | . 2 2 1 Penetration Max . | . . . . Secondary Targets 3 | . 1 2 . Max Gunslinging Chain 1 | . 1 1 . Shots Hit Robots 102 | . 30 41 31 Core Hits 45 | . 8 28 9 Critical Hits 1 | . . . 1 Critical Kills . | . . . . Critical Parts Destroyed 1 | . . . 1 Melee Attacks 6 | . . . 6 Impact 6 | . . . 6 Slashing . | . . . . Piercing . | . . . . Sneak Attacks . | . . . . Combat Hostiles . | . . . . Follow-up Attacks . | . . . . Damage Inflicted 2132 | . 310 1266 556 Guns 869 | . 310 353 206 Cannons . | . . . . Explosions 1126 | . . 913 213 Melee 137 | . . . 137 Ramming . | . . . . Kinetic 629 | . 134 316 179 Thermal 226 | . 176 37 13 Explosive 1126 | . . 913 213 Electromagnetic 14 | . . . 14 Impact 137 | . . . 137 Slashing . | . . . . Piercing . | . . . . Highest Corruption 1 | . . 1 . Average Corruption 1 | . . 1 . Corruption Purged . | . . . . Effects 1 | . . 1 . Message Errors 1 | . . 1 . Overload Shots . | . . . . Overflow Damage 38 | . . 15 23 Projectiles . | . . . . Explosions 36 | . . 15 21 Melee 2 | . . . 2 Knockbacks . | . . . . Impact . | . . . . Kinetic . | . . . . Secondary . | . . . . Self-Inflicted Damage 56 | . . 25 31 Shots 2 | . . 1 1 Rammed . | . . . . Targets Rammed . | . . . . Kicked . | . . . . Crushed . | . . . . Highest Temperature 352 | . 352 150 35 Average Temperature 83 | . 136 39 15 Received Heat Transfer 1422 | . 165 114 1143 Siege Activations . | . . . . Robots Corrupted . | . . . . Combat Hostiles . | . . . . Parts Fried . | . . . . Impact Corruptions 1 | . . . 1 Robots Melted . | . . . . Combat Hostiles . | . . . . Parts Melted 2 | . . 2 . Heat Transferred 666 | . 518 111 37 Parts Sabotaged . | . . . . Parts Stolen . | . . . . Parts Stripped . | . . . . Power Chain Reactions . | . . . . Missiles Intercepted . | . . . . Alert | -11 -10 -9 -8 ------- Run | Scr Mat Mat Mat Peak Influence 454 | . 122 454 212 Initial 136 | . . 36 136 Average 143 | . 65 224 156 Maximum Alert Level 2 | . . 2 1 Low Security (%) 76 | 100 100 49 81 Level 1 18 | . . 37 18 Level 2 4 | . . 13 . Level 3 . | . . . . Level 4 . | . . . . Level 5 . | . . . . High Security . | . . . . Max Security . | . . . . Squads Dispatched 4 | . . 3 1 Investigation . | . . . . Extermination . | . . . . Reinforcement 4 | . . 3 1 Assault . | . . . . Garrison . | . . . . Intercept . | . . . . Construction Impeded 2 | . . 1 1 Haulers Reinforced . | . . . . Stealth | -11 -10 -9 -8 --------- Run | Scr Mat Mat Mat Distress Signals 5 | . . 1 4 Communications Jammed . | . . . . Distress Signals . | . . . . Times Spotted 42 | . 6 22 14 Peak Tracking Total 11 | . 2 6 11 Tactical Retreats 1 | . . . 1 Traps | -11 -10 -9 -8 ------- Run | Scr Mat Mat Mat Traps Triggered 2 | . . 2 . Indirectly . | . . . . Trap Hack Attempts . | . . . . Triggered . | . . . . Disarmed . | . . . . Reprogrammed . | . . . . Reused . | . . . . Traps Extracted . | . . . . Installed . | . . . . Triggered . | . . . . Machines | -11 -10 -9 -8 ---------- Run | Scr Mat Mat Mat Machines Disabled 1 | . . 1 . Max in Single Turn 1 | . . 1 . Machines Sabotaged . | . . . . Garrisons Compromised . | . . . . Overloaded Fab Kills . | . . . . Fab Network Shutdowns . | . . . . Hacking | -11 -10 -9 -8 --------- Run | Scr Mat Mat Mat Machines Accessed . | . . . . Terminals . | . . . . Fabricators . | . . . . Repair Stations . | . . . . Recycling Units . | . . . . Scanalyzers . | . . . . Garrison Access . | . . . . Total Hacks . | . . . . Successful . | . . . . Failed . | . . . . Catastrophic . | . . . . Database Lockouts . | . . . . Manual . | . . . . Terminals . | . . . . Fabricators . | . . . . Repair Stations . | . . . . Recycling Units . | . . . . Scanalyzers . | . . . . Garrison Access . | . . . . Terminal Hacks . | . . . . Fabricator Hacks . | . . . . Repair Station Hacks . | . . . . Recycling Unit Hacks . | . . . . Scanalyzer . | . . . . Garrison Access Hacks . | . . . . Unauthorized Hacks . | . . . . Terminals . | . . . . Fabricators . | . . . . Repair Stations . | . . . . Recycling Units . | . . . . Scanalyzers . | . . . . Garrison Access . | . . . . Data Cores Recovered . | . . . . Used . | . . . . Hacking Detections . | . . . . Full Trace Events . | . . . . Feedback Events . | . . . . Feedback Blocked . | . . . . Robot Schematics Acquired . | . . . . Robots Built . | . . . . Matter . | . . . . Time . | . . . . Total Robot Build Rating . | . . . . Part Schematics Acquired . | . . . . Parts Built . | . . . . Matter . | . . . . Time . | . . . . Total Part Build Rating . | . . . . Parts Repaired . | . . . . Time . | . . . . Parts Recycled . | . . . . Recycled Matter . | . . . . Retrieved Matter . | . . . . Retrieved Components . | . . . . Parts Scanalyzed . | . . . . Part Schematics Acquired . | . . . . Parts Damaged . | . . . . Bothacking | -11 -10 -9 -8 ------------ Run | Scr Mat Mat Mat Used RIF Installer . | . . . . Robots Hacked . | . . . . Non-combat . | . . . . Combat . | . . . . Robot Hacks Applied . | . . . . Relay Couplers Released . | . . . . Robots Rewired . | . . . . Allies Hacked . | . . . . Hacks Repelled . | . . . . Allies | -11 -10 -9 -8 -------- Run | Scr Mat Mat Mat Total Allies . | . . . . Largest Group . | . . . . Highest-Rated Group . | . . . . Highest-Rated Ally . | . . . . Total Orders . | . . . . Ally Attacks . | . . . . Total Damage . | . . . . Kills . | . . . . Allies Corrupted . | . . . . Allies Melted . | . . . . Intel | -11 -10 -9 -8 ------- Run | Scr Mat Mat Mat Robot Analysis Total . | . . . . Derelict Logs Recovered . | . . . . Drone Launches . | . . . . Drone Recoveries . | . . . . Exploration | -11 -10 -9 -8 ------------- Run | Scr Mat Mat Mat Turns Passed 755 | 57 197 254 247 Spaces Moved 395 | 43 107 125 120 Core 18 | 10 . . 8 Treads . | . . . . Legs 377 | 33 107 125 112 Wheels . | . . . . Hover . | . . . . Flight . | . . . . Fastest Speed 50 | 50 120 120 120 Average Speed 129 | 103 124 136 137 Slowest Speed 400 | 120 150 150 400 Overloaded Moves . | . . . . Propulsion Burnouts . | . . . . Robots Hopped . | . . . . Cave-ins Triggered . | . . . . Exploration Rate (%) 14 | 3 26 20 8 Regions Visited 3 Branch Regions . Pre-discovered Areas . | . . . . Known Exits Taken 3 | 1 1 1 . Unknown Exits Taken . | . . . . Scrap Searched . | . . . . Spaces Dug . | . . . . Terrain Destroyed 128 | . . 98 30 Melee . | . . . . Projectile . | . . . . AOE 128 | . . 98 30 Terrain Rammed . | . . . . Walls Destroyed . | . . . . Machines Disabled . | . . . . Actions | -11 -10 -9 -8 --------- Run | Scr Mat Mat Mat Total 513 | 55 132 159 167 Wait 10 | . . . 10 Move 392 | 42 106 124 120 Hop . | . . . . Pick Up 21 | 7 5 4 5 Fast Attach . | . . . . Attach 20 | 6 1 5 8 Detach 1 | . . 1 . Swap . | . . . . Drop . | . . . . Fire 63 | . 20 25 18 Melee 6 | . . . 6 Ram . | . . . . Kick . | . . . . Crush . | . . . . Escape Stasis . | . . . . Rewire . | . . . . Trap . | . . . . Miscellaneous . | . . . . Route ------- -11/Scrapyard -10/Materials (discovered 2 exits: *Mat / *Min) -9/Materials (discovered 2 exits: *Mat / *Min) -8/Materials History --------- Turn | Location | Event 21 | -11/Scrapyard | Identified exit to Materials 21 | -11/Scrapyard | Discovered exit to Materials (range 16) 58 | -11/Scrapyard | Entered Materials 58 | -10/Materials | Evolved 1 slot: Weapon x1 121 | -10/Materials | Identified exit to Mines 121 | -10/Materials | Discovered exit to Mines (range 9) 161 | -10/Materials | Identified exit to Materials 161 | -10/Materials | Discovered exit to Materials (range 16) 255 | -10/Materials | Entered another Materials area 255 | -9/Materials | Evolved 2 slots: Power x1, Propulsion x1 349 | -9/Materials | Identified exit to Mines 349 | -9/Materials | Discovered exit to Mines (range 16) 490 | -9/Materials | Identified exit to Materials 490 | -9/Materials | Discovered exit to Materials (range 16) 509 | -9/Materials | Entered another Materials area 509 | -8/Materials | Evolved 2 slots: Propulsion x2 736 | -8/Materials | Core integrity fell below 50% 748 | -8/Materials | Core integrity fell below 20% 756 | -8/Materials | Destroyed by G-47 Trooper with Particle Gun Last Messages --------------- 00729_ U-05 Engineer lays Concrete. 00730_ Hvy. EM Pulse Gun destroyed. 00732_ U-05 Engineer lays Concrete. 00732_ Acquired Welding Torch. 00733_ U-05 Engineer lays Concrete. 00734_ Lgt. Assault Rifle destroyed. 00735_ U-05 Engineer builds a Wall. 00735_ Med. Laser destroyed. 00735_ U-05 Engineer builds a Door. 00736_ U-05 Engineer builds a Wall. 00736_ U-05 Engineer lays Concrete. 00737_ R-06 Scavenger collects Wheel. 00737_ B-36 Bruiser destroyed. 00737_ U-05 Engineer builds a Wall. 00741_ R-06 Scavenger collects Rnf. Ion Engine. 00741_ U-05 Engineer lays Concrete. 00744_ G-47 Trooper destroyed. 00750_ K-01 Serf collects debris. 00755_ Acquired Aluminum Leg. 00755_ K-01 Serf collects debris. Map ----- +----------------------------------------------------+ | ?????????????????############ #????????????????? | | ?????????????????????# ??# #????????????????? | | ?????????????????????# # #????????????????? | | ?????????????????????# + #????????????????? | | ?????????????????????# "T" # #????????????????? | | ?????????????????????# ""??# #????????????????? | | ?????????????????????# ????# #????????????????? | | ????????????????????????????# #????????????????? | | ????????????????????????????# #????????????????? | | ????????????????????????????# #????????????????? | | ????????????????????????????# +????????????????? | | ????????????????????????????# #????????????????? | | ????????????????????????????# #????????????????? | | ????????????????????????????# #????????????????? | | ??????????????????????????### #?##?????????????? | | ?????????????????????????? # # ?????????????? | | ??????????????????????!? # # ??????????????? | | ?????????????????????#? """ + k ???????????????? | | ?????????????????????#[ """ # #????????????????? | | ?????????????????????? """ # #########????????? | | ??????????????????????? # # # #????????? | | ?????????????????????##### # # #????????? | | ?????????????????????# # # ##????????? | | ?????????????????????# # # #????????? | | ??????????????######## Yg + %+ #????????? | | ??????? =!%+ [[@ # %# #????????? | | ??????????????######## g%g # # #????????? | | ?????????????????????# [[* #= # # ##????????? | | ?????????????????????######## ## #####?????????? | | ????????????????????????????# ####?????????????? | | ????????????????????????????# #????????????????? | | ????????????????????????????# #????????????????? | | ????????????????????????????# #????????????????? | | ????????????????????????????# #????????????????? | | ????????????????????????????# #????????????????? | | ????????????????????????????## ##????????????????? | | ?????????????????????????????# #?????????????????? | | ?????????????????????????????# #?????????????????? | | ?????????????????????????????# #?????????????????? | | ?????????????????????????????# #?????????????????? | | ?????????????????????????????# #?????????????????? | | ?????????????????????????????# #?????????????????? | | ?????????????????????????????# #?????????????????? | | ?????????????????????????????# #?????????????????? | | ?????????????????????????????# #?????????????????? | | ?????????????????????????????# #?????????????????? | | ?????????????????????????????? ??????????????????? | | ?????????????????????????????? ??????????????????? | | ?????????????????????????????? ??????????????????? | | ?????????????????????????????? ??????????????????? | +----------------------------------------------------+ Best States ------------- Heat Dissipation 45 Energy Generation 19 Energy Capacity 185 Matter Stores 270 Matter Capacity 300 Sight Range 16 Terrain Scan Density 10 Armor Coverage 150 Resistance: KI 35 Resistance: TH 35 Resistance: EX 35 Resistance: EM 35 Resistance: I 35 Resistance: S 35 Resistance: P 35 Evasion (%) 50 Offensive Hacking 20 Item Schematics ----------------- None Robot Schematics ------------------ None Fabricated ------------ Nothing Alien Tech Used ----------------- None Achievements -------------- None Challenges ------------ None Game ------ Seed GlidesysTachyonVibroblade Manual? 0 Play Time 00:13:10 Cumulative 3.9 hours Start 2021.08.06 @ 20:33:41 End 2021.08.06 @ 20:52:20 Sessions 1 Manual Loads 0 Difficulty Explorer Special Mode None Game No. 8 Rogue 0 Adventurer 0 Explorer 8 Win Type - Total 0 Types 0/0/0/0/0/0/0/0/0 Lore% 1 Gallery% 10 Achievement% 7 Wizard Run 0 Options --------- ASCII 0 Keyboard 0 Movement Mouse Keybinds 0 Fullscreen 1 Font 18/SmallcapsGlow Map View 76x50 Tactical HUD 1 Map Filters NONE Filters NONE Steam 1 RUN: 562ad537-cdd4-4b34-9e8a-a04be9288965